bitfinex/quotes_BTCUSD_20260308
["timestamp","ask_amount","ask_price","bid_price","bid_amount"]
[1772944196593,0.0285397,67034.0,67013.0,0.02959494]
[1772944196793,0.10855924,67032.0,67015.0,0.02959494]
[1772944197023,0.0285397,67031.0,67015.0,0.02959494]
[1772944197422,0.0002088,67044.0,67019.0,0.02959494]
[1772944197597,0.0285397,67038.0,67020.0,0.00148]
[1772944197800,0.0285397,67036.0,67021.0,0.00148]
[1772944198023,0.07458901,67034.0,67021.0,0.07608337]
[1772944198361,0.10855924,67031.0,67021.0,0.07608337]
[1772944198564,0.0285397,67030.0,67021.0,0.07608337]
[1772944198774,0.0285397,67028.0,67004.0,0.07483082]
[1772944198908,0.00148,67029.0,66996.0,0.02979494]
[1772944198909,0.0285397,67018.0,66998.0,0.08037863]
[1772944199108,0.10855924,67015.0,66998.0,0.08037837]
[1772944199334,0.10855924,67011.0,66998.0,0.08037837]
[1772944199542,0.0285397,67010.0,66998.0,0.00723]
[1772944199748,0.0285397,67008.0,66998.0,0.07610901]
[1772944199941,0.07461906,67007.0,66998.0,0.07610843]
[1772944200308,0.00012002,67015.0,67000.0,0.10410657]
[1772944200544,0.07460134,67023.0,67004.0,0.10410657]
[1772944200713,0.07460134,67023.0,67007.0,0.02959494]
[1772944200947,0.07460134,67023.0,67008.0,0.13370151]
[1772944201160,0.09621296,67023.0,67008.0,0.13370151]
[1772944201963,0.09621296,67023.0,67004.0,0.00012002]
[1772944201964,0.10836862,67022.0,67004.0,0.00012002]
[1772944202171,0.10836862,67022.0,67000.0,0.001]
[1772944202374,0.10836862,67022.0,66996.0,0.0002]
[1772944202375,0.10848868,67022.0,66996.0,0.074831]
[1772944202676,0.10848868,67022.0,66997.0,0.00148]
[1772944203205,0.10848868,67022.0,66994.0,0.0748327]
[1772944203425,0.10848868,67022.0,67000.0,0.001]
[1772944203701,0.10863868,67022.0,66994.0,0.0748327]
[1772944203906,0.10863868,67022.0,66995.0,0.00148]
[1772944204107,0.09908735,67020.0,66996.0,0.07463132]
[1772944204314,0.00148,67019.0,66997.0,0.00148]
[1772944204480,0.07460348,67021.0,66997.0,0.13447666]
[1772944204685,0.00148,67020.0,66999.0,0.13447666]
[1772944204881,0.09479575,67019.0,66999.0,0.13447666]
[1772944205194,0.09479575,67019.0,67001.0,0.0002]
[1772944205396,0.09479575,67019.0,67002.0,0.00148]
[1772944206504,0.08628371,67017.0,67002.0,0.00148]
[1772944207953,0.07460682,67018.0,67002.0,0.00148]
[1772944208955,0.15255695,67018.0,67002.0,0.00148]
[1772944210294,0.15240695,67018.0,67002.0,0.00148]
[1772944210644,0.15240695,67018.0,66993.0,0.07463425]
[1772944210645,0.06831591,67017.0,66993.0,0.07463425]
[1772944210988,0.06831591,67017.0,66989.0,0.00168]
[1772944211190,0.06831591,67017.0,66989.0,0.0002]
[1772944211411,0.863493,67016.0,66989.0,0.00168]
[1772944211542,0.06435046,67015.0,66989.0,0.00168]
[1772944211742,0.06435046,67013.0,66989.0,0.00168]
[1772944212153,0.06435046,67013.0,66989.0,0.0002]
[1772944212598,0.0746135,67012.0,66992.0,0.0002]
[1772944212838,0.06039275,67011.0,66992.0,0.0002]
[1772944213246,0.06039275,67011.0,66989.0,0.0002]
[1772944214637,0.07461572,67010.0,66989.0,0.0002]
[1772944214849,0.05259486,67009.0,66989.0,0.0002]
[1772944215051,0.05259486,67009.0,66985.0,0.0002]
[1772944215052,0.05259486,67007.0,66985.0,0.0002]
[1772944215240,0.05259486,67007.0,66981.0,0.09820177]
[1772944216288,0.05259486,67007.0,66980.0,0.03627489]
[1772944216719,0.05259486,67007.0,66980.0,0.11092388]
[1772944216883,0.04496441,67005.0,66980.0,0.20912565]
[1772944217091,0.07462018,67006.0,66982.0,0.03627489]
[1772944217288,0.07462018,67006.0,66985.0,0.09820177]
[1772944217704,0.0412058,67005.0,66985.0,0.09820177]
[1772944219793,0.1084319,67004.0,66985.0,0.09820177]
[1772944222762,0.07462241,67004.0,66985.0,0.09820177]
[1772944222968,0.00022001,67020.0,66986.0,0.09968177]
[1772944223180,0.00022001,67020.0,66985.0,0.07464335]
[1772944223181,0.07482473,67020.0,66990.0,0.09820177]
[1772944223316,0.07482473,67020.0,66994.0,0.09820177]
[1772944223521,0.00148,67019.0,66997.0,0.03627489]
[1772944223740,0.00148,67019.0,67001.0,0.09820177]
[1772944223956,0.00148,67019.0,67003.0,0.09820177]
[1772944224153,0.00148,67019.0,67006.0,0.03173835]
[1772944224473,0.00148,67019.0,67009.0,0.09820177]
[1772944224660,0.00148,67019.0,67010.0,0.09820177]
[1772944224995,0.07460682,67018.0,67011.0,0.03173835]
[1772944226365,0.07460682,67018.0,67013.0,0.03902369]
[1772944226657,0.07460682,67018.0,67008.0,0.07461736]
[1772944226658,0.07460682,67018.0,67014.0,0.03902369]
[1772944226867,0.07460682,67018.0,67015.0,0.03902369]
[1772944227477,0.07460682,67019.0,67015.0,0.09820177]
[1772944227675,0.07460682,67019.0,67016.0,0.00549184]
[1772944227875,0.07460682,67019.0,67016.0,0.00401188]
[1772944228793,0.00160006,67022.0,67016.0,0.00401188]
[1772944228979,0.00160006,67022.0,67016.0,0.00253188]
[1772944229780,0.0746057,67020.0,67016.0,0.00253188]
[1772944231475,0.0746057,67020.0,67012.0,0.03173835]
[1772944231674,0.0746057,67020.0,67001.0,0.07462575]
[1772944231878,0.03316164,67019.0,67001.0,0.07462575]
[1772944232075,0.03316164,67018.0,67001.0,0.07610575]
[1772944232731,0.03316164,67018.0,67001.0,0.07462575]
[1772944233130,0.03316164,67016.0,67001.0,0.07462575]
[1772944233335,0.03418672,67014.0,67001.0,0.07462575]
[1772944235136,0.07461238,67013.0,67001.0,0.07462575]
[1772944235453,0.07461238,67013.0,67001.0,0.16048963]
[1772944236743,0.07461238,67013.0,67002.0,0.08586388]
[1772944237258,0.07461238,67013.0,67001.0,0.07462575]
[1772944237414,0.10899896,67013.0,67001.0,0.07462575]
[1772944239764,0.10899896,67013.0,67000.0,0.07462613]
[1772944239980,0.10899896,67013.0,67001.0,0.08586388]
[1772944241400,0.10921897,67013.0,67001.0,0.08586388]
[1772944242054,0.10921897,67013.0,67002.0,0.07462463]
[1772944242396,0.10921897,67013.0,67002.0,0.16048851]
[1772944246395,0.07483239,67013.0,67001.0,0.08586388]
[1772944248554,0.07483239,67013.0,67002.0,0.07462463]
[1772944248785,0.07483239,67013.0,67003.0,0.08586388]
[1772944250768,0.0340421,67012.0,67002.0,0.07462463]
[1772944250970,0.0340421,67012.0,66994.0,0.07463295]
[1772944251170,0.0340421,67011.0,66995.0,0.00148]
[1772944251378,0.03398006,67009.0,66995.0,0.00148]
[1772944251923,0.03398006,67009.0,66996.0,0.00148]
[1772944252254,0.03398006,67009.0,66993.0,0.07483415]
[1772944252451,0.03398006,67009.0,66995.0,0.00148]
[1772944252896,0.03398006,67007.0,66995.0,0.00148]
[1772944254191,0.03398006,67007.0,66993.0,0.07483415]
[1772944254358,0.03398006,67007.0,66995.0,0.00148]
[1772944254556,0.03398006,67007.0,66993.0,0.07483415]
[1772944254758,0.03398006,67007.0,66994.0,0.00148]
[1772944255233,0.03391867,67005.0,66995.0,0.00148]
[1772944256236,0.03391867,67005.0,66994.0,0.00148]
[1772944256822,0.03391867,67005.0,66993.0,0.00168]
[1772944257070,0.03391867,67005.0,66995.0,0.0002]
[1772944257273,0.0746176,67009.0,66996.0,0.08586388]
[1772944257430,0.07609795,67008.0,66996.0,0.08586388]
[1772944258436,0.07461795,67008.0,66996.0,0.08586388]
[1772944258637,0.07609795,67008.0,66996.0,0.08586388]
[1772944259136,0.07461795,67008.0,66996.0,0.08586388]
[1772944259367,0.07609795,67008.0,66997.0,0.16049408]
[1772944259997,0.07461795,67008.0,66997.0,0.16049408]
[1772944260189,0.07609795,67008.0,66997.0,0.16049408]
[1772944260483,0.07461795,67008.0,66997.0,0.16049408]
[1772944260723,0.07609795,67008.0,66997.0,0.16049408]
[1772944260951,0.07609795,67008.0,66998.0,0.08586388]
[1772944261533,0.07609795,67008.0,66998.0,0.16049268]
[1772944261754,0.0337816,67007.0,66995.0,0.0748302]
[1772944262492,0.0337816,67007.0,66989.0,0.06958156]
[1772944262694,0.0337816,67006.0,66989.0,0.00015]
[1772944262899,0.0337816,67002.0,66988.0,0.00168]
[1772944263099,0.0337816,66999.0,66986.0,0.0002]
[1772944263298,0.07158372,66996.0,66985.0,0.0002]
[1772944263548,0.03371491,66994.0,66985.0,0.0002]
[1772944264352,0.03371491,66994.0,66985.0,0.00059995]
[1772944264967,0.00148,66993.0,66985.0,0.07003151]
[1772944265143,0.07463243,66995.0,66985.0,0.07003151]
[1772944265144,0.07611243,66995.0,66985.0,0.07003151]
[1772944265549,0.07611243,66995.0,66991.0,0.0002]
[1772944266643,0.07463243,66995.0,66991.0,0.0002]
[1772944266849,0.07611243,66995.0,66991.0,0.0002]
[1772944267051,0.07610808,66999.0,66991.0,0.0002]
[1772944267293,0.07462808,66999.0,66991.0,0.0002]
[1772944267618,0.001,66995.0,66991.0,0.0002]
[1772944268063,0.07462808,66999.0,66991.0,0.0002]
[1772944269178,0.07462808,66999.0,66988.0,0.07463989]
[1772944269401,0.07462808,66999.0,66987.0,0.07612118]
[1772944269402,0.03353999,66998.0,66987.0,0.07612118]
[1772944270402,0.0746302,66997.0,66988.0,0.00148]
[1772944272230,0.0746302,66997.0,66991.0,0.0002]
[1772944274103,0.0746302,66997.0,66991.0,0.0004064]
[1772944292208,0.03295096,66996.0,66991.0,0.0004064]
[1772944293293,0.03295096,66994.0,66991.0,0.0004064]
[1772944294052,0.03295096,66994.0,66987.0,0.00148]
[1772944294053,0.07463243,66995.0,66981.0,0.00168]
[1772944294246,0.03290026,66993.0,66981.0,0.00174583]
[1772944294447,0.03290026,66993.0,66981.0,0.00026583]
[1772944294647,0.03290026,66992.0,66981.0,0.07491386]
[1772944295007,0.03290026,66992.0,66981.0,0.00026583]
[1772944295208,0.07463689,66991.0,66981.0,0.00026583]
[1772944295435,0.03285,66990.0,66979.0,0.07484999]
[1772944296793,0.03285,66990.0,66984.0,0.0002]
[1772944297510,0.07463911,66989.0,66984.0,0.0002]
[1772944297713,0.03280349,66988.0,66984.0,0.0002]
[1772944300165,0.07464134,66987.0,66984.0,0.0002]
[1772944300333,0.10739029,66987.0,66984.0,0.0002]
[1772944307755,0.07463689,66993.0,66984.0,0.0002]
[1772944307937,0.03255602,66992.0,66984.0,0.0002]
[1772944310124,0.07463689,66991.0,66984.0,0.0002]
[1772944311667,0.10709887,66991.0,66984.0,0.0002]
[1772944312186,0.07463689,66992.0,66984.0,0.0002]
[1772944318159,0.0748569,66992.0,66984.0,0.0002]
[1772944320896,0.07463689,66993.0,66984.0,0.0002]
[1772944321044,0.02236329,66992.0,66984.0,0.05799537]
[1772944321254,0.07463236,66996.0,66984.0,0.05799537]
[1772944322981,0.07463236,66996.0,66985.0,0.07464357]
[1772944323525,0.07467239,66996.0,66985.0,0.07464357]
[1772944324105,0.18139398,66999.0,66985.0,0.07464357]
[1772944324106,0.07484799,66999.0,66986.0,0.04763055]
[1772944324279,0.07484799,66999.0,66987.0,0.04911055]
[1772944325230,0.07484799,66999.0,66988.0,0.07464023]
[1772944333105,0.07484799,66999.0,66979.0,0.22394766]
[1772944333106,0.00148,66998.0,66979.0,0.07484998]
[1772944333304,0.00148,66998.0,66979.0,0.0002]
[1772944333305,0.089316,66997.0,66979.0,0.0002]
[1772944333504,0.03954748,66996.0,66981.0,0.00168]
[1772944333825,0.03954748,66992.0,66981.0,0.00168]
[1772944334024,0.03954748,66991.0,66981.0,0.00168]
[1772944334217,0.03954748,66991.0,66984.0,0.0002]
[1772944335383,0.03954748,66989.0,66984.0,0.0002]
[1772944336905,0.02579806,66990.0,66984.0,0.0002]
[1772944337128,0.07463756,66991.0,66984.0,0.0002]
[1772944337319,0.07463354,66994.0,66984.0,0.0002]
[1772944340037,0.11507896,66994.0,66984.0,0.0002]
[1772944341162,0.07463354,66995.0,66984.0,0.0002]
[1772944347133,0.07485204,66996.0,66984.0,0.0002]
[1772944349008,0.00022001,66996.0,66984.0,0.0002]
[1772944349214,0.07485168,66996.0,66984.0,0.0002]
[1772944353368,0.0449505,66995.0,66984.0,0.0002]
[1772944353783,0.07485168,66996.0,66984.0,0.0002]
[1772944354088,0.07485158,66996.0,66984.0,0.04394445]
[1772944354481,0.07485158,66996.0,66984.0,0.0002]
[1772944357409,0.07485158,66996.0,66984.0,0.07484469]
[1772944358949,0.07485137,66996.0,66984.0,0.07484469]
[1772944359277,8.37e-05,66998.0,66984.0,0.07484469]
[1772944359502,0.07471292,66998.0,66984.0,0.11858914]
[1772944360911,0.07471292,66998.0,66984.0,0.11958914]
[1772944361111,0.07471292,66998.0,66984.0,0.11858914]
[1772944361416,0.07471292,66998.0,66984.0,0.11958914]
[1772944363364,0.07471292,66998.0,66984.0,0.11858914]
[1772944364389,0.07493293,66998.0,66984.0,0.11858914]
[1772944366007,0.07493293,66998.0,66984.0,0.07484469]
[1772944367587,0.06543293,66998.0,66984.0,0.07484469]
[1772944371173,0.00030001,66999.0,66984.0,0.07484469]
[1772944371382,0.07532861,66999.0,66984.0,0.11858914]
[1772944372992,0.07462686,67000.0,66984.0,0.07484469]
[1772944373191,0.07467465,67000.0,66984.0,0.07484469]
[1772944373904,0.00022001,66998.0,66984.0,0.07484469]
[1772944379560,0.00022001,67003.0,66985.0,0.04374445]
[1772944379770,0.00022001,67003.0,66985.0,0.04414503]
[1772944380640,0.00022001,67003.0,66985.0,0.04514503]
[1772944381616,0.00022001,67003.0,66986.0,0.07464246]
[1772944381960,0.12904307,67003.0,66986.0,0.07464246]
[1772944382622,0.20366667,67003.0,66986.0,0.07464246]
[1772944382944,0.12747431,67002.0,66986.0,0.07464246]
[1772944383451,0.12747431,67002.0,66986.0,0.07564246]
[1772944383657,0.12747431,67002.0,66986.0,0.07464246]
[1772944383804,0.12747431,67002.0,66986.0,0.07564246]
[1772944384210,0.12747431,67002.0,66986.0,0.07464246]
[1772944384785,0.0877352,67002.0,66986.0,0.07464246]
[1772944384938,0.07484361,67003.0,66986.0,0.07464246]
[1772944385255,0.00022001,67003.0,66986.0,0.07464246]
[1772944385434,0.00022001,67003.0,66987.0,0.00148]
[1772944385646,0.12748498,67002.0,66988.0,0.07464023]
[1772944385847,0.00022001,67003.0,66988.0,0.07464023]
[1772944386030,0.00022001,67003.0,66988.0,0.11221615]
[1772944387376,0.00022001,67003.0,66988.0,0.11321615]
[1772944387570,0.00022001,67003.0,66988.0,0.11221615]
[1772944389532,0.00022001,67003.0,66988.0,0.07464023]
[1772944394020,0.00022001,67003.0,66988.0,0.07564023]
[1772944395101,0.00022001,67003.0,66988.0,0.07464023]
[1772944395518,0.00022001,67003.0,66988.0,0.07564023]
[1772944401307,0.00022001,67003.0,66988.0,0.07464023]
[1772944401458,0.00022001,67008.0,66988.0,0.07564023]
[1772944401656,0.00022001,67008.0,66989.0,0.03489966]
[1772944402435,0.00022001,67008.0,66990.0,0.074638]
[1772944403231,0.10064298,67008.0,66990.0,0.074638]
[1772944403438,0.10037524,67007.0,66990.0,0.074638]
[1772944403655,0.0794171,67007.0,66990.0,0.075638]
[1772944404063,0.0794171,67007.0,66990.0,0.074638]
[1772944404285,0.01884342,67007.0,66990.0,0.075638]
[1772944404456,0.06057368,67006.0,66990.0,0.075638]
[1772944404657,0.06057368,67006.0,66990.0,0.076638]
[1772944404890,0.06057368,67006.0,66990.0,0.075638]
[1772944405518,0.01884342,67007.0,66990.0,0.074638]
[1772944405673,0.01884342,67007.0,66991.0,0.03111327]
[1772944405874,0.01884342,67007.0,66992.0,0.03259327]
[1772944407028,0.01884342,67007.0,66993.0,0.07463466]
[1772944407613,0.04982959,67007.0,66993.0,0.07463466]
[1772944408010,0.07100774,67008.0,66994.0,0.03111327]
[1772944408666,0.03120618,67008.0,66994.0,0.03111327]
[1772944408870,0.07100774,67008.0,66994.0,0.03111327]
[1772944409349,0.03980156,67007.0,66995.0,0.07463243]
[1772944414679,0.04002157,67007.0,66995.0,0.07463243]
[1772944417382,0.01905662,67007.0,66995.0,0.07463243]
[1772944419728,0.01905662,67007.0,66996.0,0.03576166]
[1772944419927,0.07484019,67007.0,66992.0,0.07463577]
[1772944420146,0.07484019,67007.0,66993.0,0.00148]
[1772944420147,0.03846522,67006.0,66993.0,0.00148]
[1772944421316,0.03846522,67006.0,66995.0,0.0002]
[1772944422892,0.03846522,67005.0,66995.0,0.0002]
[1772944423588,0.03846522,67005.0,66996.0,0.00148]
[1772944428856,0.03846522,67005.0,66997.0,0.0746302]
[1772944431219,0.01748955,67005.0,66997.0,0.0746302]
[1772944433490,0.0746202,67006.0,66997.0,0.0746302]
[1772944433643,0.00022001,67005.0,66997.0,0.0746302]
[1772944443293,0.00022001,67007.0,66998.0,0.03965963]
[1772944444351,0.00022001,67008.0,66998.0,0.03965963]
[1772944444525,0.00022001,67011.0,66998.0,0.03301759]
[1772944444733,0.00022001,67011.0,66999.0,0.03965963]
[1772944444907,0.00022001,67011.0,67000.0,0.03301759]
[1772944445111,0.00022001,67011.0,67002.0,0.03965963]
[1772944445512,0.00022001,67011.0,67003.0,0.07462352]
[1772944445856,0.00022001,67011.0,67004.0,0.03965963]
[1772944446002,0.00022001,67012.0,67004.0,0.03965963]
[1772944446214,0.07483132,67014.0,67004.0,0.03965963]
[1772944447527,0.07483132,67014.0,67005.0,0.07462129]
[1772944447725,0.07483132,67014.0,67006.0,0.00148]
[1772944449679,0.07483132,67014.0,67007.0,0.07461906]
[1772944455876,0.00022001,67015.0,67007.0,0.07461906]
[1772944455877,0.07460708,67018.0,67008.0,0.03965963]
[1772944456445,0.07494973,67017.0,67008.0,0.03965963]
[1772944457183,0.00022001,67013.0,67009.0,0.00148]
[1772944457386,0.00022001,67013.0,67010.0,0.00148]
[1772944457695,0.00022001,67013.0,67011.0,0.00148]
[1772944458270,0.00027377,67013.0,67011.0,0.00148]
[1772944459210,0.00127377,67013.0,67011.0,0.00148]
[1772944459790,0.00127377,67013.0,67011.0,0.07609407]
[1772944466492,0.00127377,67013.0,67010.0,0.00148]
[1772944466861,0.07494945,67017.0,67010.0,0.00148]
[1772944470191,0.07494945,67017.0,67010.0,0.07629473]
[1772944472161,0.07494945,67017.0,67010.0,0.0002]
[1772944472368,0.07494945,67017.0,67011.0,0.00148]
[1772944476712,0.07494945,67017.0,67011.0,0.07609457]
[1772944477786,0.07494945,67017.0,67011.0,0.07629457]
[1772944483495,0.07494945,67017.0,67011.0,0.0002]
[1772944483698,0.07494945,67017.0,67012.0,0.00148]
[1772944493115,0.07494945,67017.0,66987.0,0.0001212]
[1772944493312,0.03265647,67016.0,67003.0,0.0748229]
[1772944493465,0.03271022,67016.0,67003.0,0.0748229]
[1772944494308,0.03271022,67016.0,67003.0,0.0763029]
[1772944494678,0.07461016,67015.0,67003.0,0.0002]
[1772944495032,0.07461016,67015.0,67003.0,0.00168]
[1772944495203,0.03265647,67014.0,67003.0,0.0002]
[1772944495467,0.03265647,67014.0,66999.0,0.00148]
[1772944495670,0.03265647,67014.0,66998.0,0.00148]
[1772944495813,0.03265647,67014.0,66997.0,0.0002]
[1772944496013,0.03265647,67014.0,66998.0,0.00148]
[1772944496213,0.03265647,67009.0,66990.0,0.07483743]
[1772944496482,0.03265647,67007.0,66990.0,0.07631743]
[1772944497237,0.07462018,67006.0,66990.0,0.07631743]
[1772944497449,0.10727665,67006.0,66990.0,0.07631743]
[1772944498271,0.07462018,67006.0,66990.0,0.07631743]
[1772944498479,0.10727665,67006.0,66997.0,0.0002]
[1772944499210,0.03265647,67005.0,66997.0,0.0002]
[1772944499415,0.07462241,67004.0,66997.0,0.0002]
[1772944499751,0.10727888,67004.0,66997.0,0.0002]
[1772944504726,0.07462241,67004.0,66997.0,0.0002]
[1772944505276,0.07462018,67006.0,66997.0,0.0002]
[1772944505910,0.10609637,67006.0,66997.0,0.0002]
[1772944509137,0.10609637,67006.0,66987.0,0.0001212]
[1772944509138,0.03147619,66999.0,66979.0,0.00168]
[1772944509356,0.03147619,66997.0,66979.0,0.00168]
[1772944509662,0.03147619,66997.0,66979.0,0.0002]
[1772944510996,0.03159739,66997.0,66979.0,0.0002]
[1772944511230,0.03147619,66995.0,66979.0,0.0002]
[1772944511377,0.03147619,66995.0,66990.0,0.0002]
[1772944511551,0.03147619,66995.0,66979.0,0.0002]
[1772944511977,0.03147619,66995.0,66983.0,0.0002]
[1772944512409,0.03147619,66995.0,66983.0,0.00060058]
[1772944513101,0.07463354,66994.0,66983.0,0.00060058]
[1772944513302,0.00148,66993.0,66983.0,0.00060058]
[1772944514373,0.03295619,66993.0,66983.0,0.00060058]
[1772944514575,0.03395619,66993.0,66983.0,0.00060058]
[1772944514831,0.03295619,66993.0,66983.0,0.00060058]
[1772944514980,0.03395619,66993.0,66983.0,0.00060058]
[1772944515375,0.07463577,66992.0,66983.0,0.00060058]
[1772944516505,0.07463577,66992.0,66973.0,0.0001212]
[1772944516506,0.03147619,66991.0,66973.0,0.0001212]
[1772944516840,0.03147619,66991.0,66973.0,0.00016899]
[1772944517477,0.10611419,66990.0,66973.0,0.00016899]
[1772944517609,0.074638,66990.0,66973.0,0.07482594]
[1772944517805,0.00148,66989.0,66975.0,0.03149025]
[1772944518040,0.00148,66989.0,66976.0,0.0383305]
[1772944518240,0.00148,66989.0,66973.0,0.07482594]
[1772944518241,0.00148,66989.0,66973.0,0.03997949]
[1772944519064,0.00148,66989.0,66976.0,0.0002]
[1772944519692,0.07464023,66988.0,66976.0,0.0002]
[1772944521539,0.07464023,66988.0,66971.0,0.00575]
[1772944521540,0.03147619,66987.0,66971.0,0.00575]
[1772944521749,0.03147619,66980.0,66967.0,0.0001212]
[1772944521947,0.03147619,66980.0,66967.0,0.00166704]
[1772944522084,0.00148,66981.0,66972.0,0.00015]
[1772944522274,0.00148,66981.0,66967.0,0.00166704]
[1772944522474,0.00148,66981.0,66967.0,0.03999754]
[1772944523638,0.07464914,66980.0,66967.0,0.03999754]
[1772944525031,0.11919174,66980.0,66967.0,0.03999754]
[1772944526836,0.07464914,66980.0,66967.0,0.03999754]
[1772944527030,0.07464914,66980.0,66967.0,0.04019754]
[1772944527725,0.02984013,66979.0,66967.0,0.04019754]
[1772944527929,0.02984013,66979.0,66967.0,0.00186704]
[1772944528371,0.07465137,66978.0,66967.0,0.00038704]
[1772944528549,0.02984013,66977.0,66967.0,0.00038704]
[1772944530579,0.02984013,66975.0,66967.0,0.00038704]
[1772944533331,0.07465583,66974.0,66967.0,0.00038704]
[1772944536168,0.07465583,66975.0,66967.0,0.03030364]
[1772944537258,0.07465137,66978.0,66967.0,0.03030364]
[1772944538899,0.07465137,66978.0,66962.0,0.0002]
[1772944539099,0.0322189,66971.0,66962.0,0.0002]
[1772944539299,0.07466029,66970.0,66962.0,0.0002]
[1772944539499,0.02798281,66968.0,66954.0,0.02148]
[1772944539708,0.00148,66969.0,66952.0,0.00148]
[1772944539709,0.0322189,66963.0,66952.0,0.00148]
[1772944540030,0.0322189,66963.0,66955.0,0.00015]
[1772944540703,0.03169628,66963.0,66955.0,0.00015]
[1772944540871,0.03165628,66963.0,66951.0,0.00148]
[1772944541299,0.03165628,66963.0,66950.0,1e-08]
[1772944541300,0.07614921,66962.0,66950.0,1e-08]
[1772944541640,0.02798281,66961.0,66950.0,1e-08]
[1772944541842,0.11921181,66963.0,66950.0,1e-08]
[1772944541843,0.0746681,66963.0,66952.0,0.03091257]
[1772944542069,0.15014532,66968.0,66955.0,0.0299166]
[1772944542275,0.00148,66968.0,66957.0,0.0299166]
[1772944542684,0.07614141,66969.0,66959.0,0.0299166]
[1772944543092,0.07466141,66969.0,66959.0,0.0299166]
[1772944543288,0.07614141,66969.0,66959.0,0.0299166]
[1772944543660,0.07466141,66969.0,66959.0,0.0299166]
[1772944543911,0.07614141,66969.0,66959.0,0.0299166]
[1772944546086,0.07466141,66969.0,66959.0,0.0299166]
[1772944546209,0.07614141,66969.0,66959.0,0.0299166]
[1772944546416,0.02798281,66967.0,66946.0,0.07468636]
[1772944546615,0.0322189,66964.0,66952.0,0.00148]
[1772944546811,0.0322189,66963.0,66949.0,0.00148]
[1772944548159,0.07466921,66962.0,66950.0,0.02991661]
[1772944548358,0.10688811,66962.0,66950.0,0.02991661]
[1772944548494,0.10688811,66962.0,66952.0,0.0002]
[1772944548918,0.0322189,66961.0,66952.0,0.0002]
[1772944551335,0.07467144,66960.0,66952.0,0.0002]
[1772944564710,0.04461312,66962.0,66954.0,0.0298928]
[1772944564888,0.07466364,66967.0,66956.0,0.0298928]
[1772944565087,0.07466364,66967.0,66952.0,0.0002]
[1772944565088,0.03091309,66965.0,66952.0,0.0002]
[1772944565287,0.02886673,66962.0,66952.0,0.0002]
[1772944565489,0.02886673,66960.0,66953.0,0.00148]
[1772944565808,0.02886673,66960.0,66952.0,0.0002]
[1772944566015,0.02886673,66960.0,66954.0,0.00148]
[1772944566161,0.07466364,66967.0,66954.0,0.00148]
[1772944566365,0.10353037,66967.0,66955.0,0.00148]
[1772944567021,0.10353037,66967.0,66956.0,0.0298928]
[1772944568171,0.07466364,66967.0,66956.0,0.0298928]
[1772944570881,0.07488365,66967.0,66956.0,0.0298928]
[1772944573519,0.07466029,66971.0,66958.0,0.03147183]
[1772944574069,0.07465918,66973.0,66960.0,0.03147183]
[1772944574070,0.07465695,66973.0,66960.0,0.03147183]
[1772944574309,0.03854727,66973.0,66962.0,0.03147183]
[1772944575387,0.03854727,66973.0,66964.0,0.03147183]
[1772944575593,0.03854727,66973.0,66966.0,0.03147183]
[1772944577926,0.11335645,66973.0,66965.0,0.00148]
[1772944578127,0.14422904,66973.0,66965.0,0.00148]
[1772944579543,0.06941986,66973.0,66965.0,0.00148]
[1772944579994,0.03854727,66973.0,66966.0,0.03147183]
[1772944581112,0.03876728,66973.0,66966.0,0.03147183]
[1772944581876,0.03087259,66971.0,66964.0,0.00148]
[1772944582115,0.10553288,66970.0,66964.0,0.00148]
[1772944583911,0.07466029,66970.0,66964.0,0.00148]
[1772944584503,0.07466029,66970.0,66963.0,0.00148]
[1772944586136,0.10553288,66971.0,66963.0,0.00148]
[1772944586523,0.10553288,66971.0,66964.0,0.07466698]
[1772944587707,0.07466029,66971.0,66964.0,0.07466698]
[1772944591960,0.07466029,66971.0,66963.0,0.00168]
[1772944592140,0.07466029,66971.0,66963.0,0.07634758]
[1772944602162,0.14947021,66970.0,66963.0,0.07634758]
[1772944609615,0.07466103,66970.0,66963.0,0.07634758]
[1772944612233,0.07480918,66969.0,66963.0,0.07634758]
[1772944620110,0.00034004,66978.0,66963.0,0.07634758]
[1772944620516,0.07465249,66977.0,66963.0,0.07486758]
[1772944620732,0.05437377,66973.0,66962.0,0.07466906]
[1772944620902,0.05437377,66971.0,66963.0,0.00148]
[1772944621117,0.03141479,66968.0,66964.0,0.00148]
[1772944621318,0.05437377,66966.0,66964.0,0.00148]
[1772944621677,0.03028059,66965.0,66964.0,0.00148]
[1772944622256,0.03028059,66965.0,66962.0,0.07466906]
[1772944622414,0.03028059,66965.0,66963.0,0.07614795]
[1772944622815,0.03028059,66965.0,66964.0,0.00148]
[1772944623216,0.03028059,66965.0,66963.0,0.07486795]
[1772944623410,0.03028059,66965.0,66964.0,0.00148]
[1772944625003,0.03028059,66965.0,66963.0,0.07486795]
[1772944625143,0.00928516,66965.0,66964.0,0.00148]
[1772944626195,0.08315045,66968.0,66964.0,0.00148]
[1772944626542,0.08315045,66968.0,66965.0,0.00148]
[1772944627355,0.02877668,66968.0,66965.0,0.00148]
[1772944627573,0.0599701,66968.0,66965.0,0.00148]
[1772944629005,0.0599701,66968.0,66965.0,0.07614585]
[1772944632771,0.05976269,66966.0,66965.0,0.00148]
[1772944635599,0.07466364,66967.0,66965.0,0.00148]
[1772944635980,0.10344032,66967.0,66965.0,0.00148]
[1772944636157,0.07466157,66969.0,66965.0,0.00148]
[1772944636760,0.00022001,66966.0,66964.0,0.0748662]
[1772944637036,0.00022001,66966.0,66964.0,0.0763462]
[1772944637721,0.00022001,66966.0,66964.0,0.00168]
[1772944643184,0.07488034,66970.0,66964.0,0.00168]
[1772944644172,0.02877668,66969.0,66964.0,0.00168]
[1772944644353,0.02877668,66967.0,66964.0,0.00168]
[1772944644734,0.02899669,66967.0,66964.0,0.00168]
[1772944644940,0.02899669,66967.0,66950.0,0.07528206]
[1772944644941,0.02877668,66963.0,66950.0,0.07528206]
[1772944645146,0.03071119,66960.0,66950.0,0.07528171]
[1772944645353,0.02877668,66957.0,66950.0,0.07528171]
[1772944645552,0.07466475,66966.0,66950.0,0.0746817]
[1772944645553,0.05154773,66954.0,66950.0,0.0746817]
[1772944645821,0.08032441,66953.0,66950.0,0.0746817]
[1772944646025,0.07466475,66966.0,66950.0,0.0761617]
[1772944646318,0.05154773,66957.0,66949.0,0.00148]
[1772944646578,0.07488447,66967.0,66950.0,0.02402784]
[1772944646694,0.07488447,66967.0,66950.0,0.02413556]
[1772944646894,0.00022001,66967.0,66952.0,0.02396214]
[1772944647528,0.07488406,66967.0,66951.0,0.07468148]
[1772944647726,0.02877668,66965.0,66951.0,0.07468148]
[1772944648838,0.02877668,66965.0,66951.0,0.07568148]
[1772944649041,0.02877668,66965.0,66951.0,0.07468148]
[1772944649839,0.02877668,66965.0,66952.0,0.00148]